bitfinex/quotes_SOLUSD_20240930
["timestamp","ask_amount","ask_price","bid_price","bid_amount"]
[1727683515505,12.51695962,157.06,157.04,6.3677]
[1727683515712,7.37884287,157.05,156.98,6.5141]
[1727683515998,7.37884287,157.04,157.01,6.3686]
[1727683516195,7.37884287,157.03,157.01,6.3686]
[1727683516386,7.37884287,157.02,157.01,6.3686]
[1727683518609,44.027864,157.08,157.03,6.3679]
[1727683518798,41.75677878,157.07,157.03,6.3679]
[1727683519107,41.75677878,157.06,157.03,6.3679]
[1727683519304,20.36891342,157.05,157.04,6.3678]
[1727683519692,25.50472023,157.05,157.04,6.3678]
[1727683519895,25.50472023,157.05,157.03,6.3681]
[1727683520092,25.50472023,157.04,157.03,6.3681]
[1727683521603,5.13580681,157.04,157.03,6.3681]
[1727683524011,5.13580681,157.04,156.97,16.3006]
[1727683524191,5.13580681,157.03,156.95,23.776884]
[1727683524391,5.13580681,157.02,157.0,6.3693]
[1727683524597,5.13580681,157.01,156.99,6.3695]
[1727683524825,0.25098,157.03,156.99,6.3695]
[1727683525002,19.95310346,157.0,156.99,6.3695]
[1727683525318,7.67389407,157.0,156.99,6.3695]
[1727683525607,25.08607034,157.0,156.99,6.3695]
[1727683525833,30.22002456,157.0,156.99,6.3695]
[1727683528142,10.26789997,157.0,156.99,6.3695]
[1727683528408,30.06828428,157.0,156.99,6.3695]
[1727683528810,24.93865882,157.0,156.99,6.3695]
[1727683531526,24.92607494,157.0,156.99,6.3695]
[1727683533324,24.55329451,157.0,156.99,6.3695]
[1727683533727,12.60292604,157.0,156.99,6.3695]
[1727683534338,7.46898029,157.0,156.99,6.3695]
[1727683534710,6.3675,157.05,156.94,16.58167798]
[1727683534711,0.25098,157.04,157.0,6.3692]
[1727683535036,7.36501842,157.03,157.0,6.3692]
[1727683535339,7.36501842,157.02,157.0,6.3692]
[1727683535509,7.36501842,157.01,157.0,6.3692]
[1727683538466,0.12549,157.04,156.94,16.58167798]
[1727683538644,20.25098,157.05,157.02,6.3685]
[1727683538934,7.36552518,157.04,157.03,6.3682]
[1727683548241,7.37154353,157.04,157.03,6.3682]
[1727683551557,0.12549,157.09,157.05,6.3671]
[1727683551723,7.37056987,157.08,157.05,6.3671]
[1727683551923,7.37056544,157.07,157.05,6.3671]
[1727683552143,7.37056544,157.06,157.05,6.3671]
[1727683552741,12.50241581,157.06,157.05,6.3671]
[1727683554827,5.13185037,157.06,157.05,6.3671]
[1727683555031,12.5062439,157.06,157.05,6.3671]
[1727683558431,12.5062439,157.06,157.0,20.0]
[1727683558636,0.12549,157.09,157.04,6.3677]
[1727683558637,12.5062439,157.05,157.04,6.3677]
[1727683558942,12.5062439,157.05,157.03,6.3681]
[1727683559128,6.3666,157.07,157.03,6.3681]
[1727683559129,12.5062439,157.04,157.03,6.3681]
[1727683560045,12.5062439,157.04,156.96,20.0]
[1727683560361,12.51058042,157.03,156.97,30.0]
[1727683560651,12.51058042,157.02,157.0,6.3693]
[1727683560858,7.37439353,157.01,157.0,6.3693]
[1727683561939,7.37439353,157.01,157.0,6.5587821]
[1727683563828,7.38313418,157.01,157.0,0.1894821]
[1727683564031,7.38313418,157.01,157.0,6.5588821]
[1727683564841,7.38313418,157.01,157.0,27.83241129]
[1727683566241,7.38313418,157.01,157.0,51.60929529]
[1727683566443,6.0629,157.11,157.0,67.74837529]
[1727683566655,7.38182635,157.1,157.08,6.3658]
[1727683566857,7.38182635,157.09,157.08,6.3658]
[1727683567052,12.52145344,157.09,157.08,6.3658]
[1727683569656,7.38182635,157.09,157.08,6.3658]
[1727683569959,7.31554185,157.09,157.08,6.3661]
[1727683576670,7.1701855,157.09,157.08,6.3661]
[1727683579358,20.25098,157.15,157.06,1.27303744]
[1727683579664,7.17319357,157.14,157.06,21.27303744]
[1727683579852,7.17319357,157.13,157.12,6.3645]
[1727683580253,7.17319357,157.13,157.11,6.3648]
[1727683580560,7.17319357,157.12,157.11,6.3648]
[1727683585253,16.5386,157.17,157.13,6.3638]
[1727683586456,22.9012,157.17,157.13,6.3638]
[1727683590871,16.5386,157.17,157.13,6.3638]
[1727683591063,16.5386,157.17,157.08,1.27278523]
[1727683591064,6.3617,157.19,157.1,23.776884]
[1727683591384,6.3617,157.19,157.11,1.27263756]
[1727683591562,6.3617,157.19,157.11,11.45771554]
[1727683591757,6.3617,157.19,157.12,1.27263756]
[1727683592154,6.3617,157.19,157.15,6.3632]
[1727683593284,6.3617,157.19,157.14,6.3636]
[1727683595280,20.0,157.19,157.06,20.0]
[1727683595466,24.027864,157.18,157.06,30.18507798]
[1727683595670,6.3626,157.17,157.12,6.3642]
[1727683597766,24.027864,157.18,157.12,6.3642]
[1727683597979,6.3634,157.15,157.11,6.3648]
[1727683598165,15.455,157.16,157.05,21.8729]
[1727683598166,6.3637,157.14,157.05,21.8729]
[1727683598365,6.365,157.11,157.07,6.3665]
[1727683598580,6.365,157.11,157.06,6.3669]
[1727683599381,6.3653,157.1,157.06,6.3669]
[1727683599584,21.6781,157.1,157.06,6.3669]
[1727683600687,15.3128,157.1,157.06,6.3669]
[1727683602189,15.3128,157.1,157.07,6.3665]
[1727683602363,15.3128,157.1,157.08,6.3661]
[1727683603181,15.3128,157.1,157.07,6.3665]
[1727683605276,0.12549,157.12,157.02,35.42474889]
[1727683605486,20.12549,157.13,157.09,6.3654]
[1727683606390,15.5427,157.14,157.11,6.3648]
[1727683606698,15.5427,157.14,157.1,6.3652]
[1727683607071,15.5427,157.14,157.05,1.27309474]
[1727683607296,15.5427,157.14,157.11,6.3648]
[1727683607586,15.5427,157.14,157.1,6.3653]
[1727683612290,21.9065,157.14,157.1,6.3653]
[1727683612698,21.9065,157.14,157.09,6.3657]
[1727683614691,21.9065,157.14,157.04,10.18507798]
[1727683614692,21.9065,157.14,157.1,6.3652]
[1727683615195,15.5427,157.14,157.1,6.3652]
[1727683617481,15.5427,157.14,157.11,6.3649]
[1727683618373,15.5427,157.14,157.05,10.18507798]
[1727683618612,26.61358,157.17,157.07,33.96196198]
[1727683618800,26.61358,157.17,157.08,1.27288454]
[1727683620199,26.61358,157.17,157.13,6.3641]
[1727683620384,26.61358,157.17,157.12,6.3645]
[1727683620583,6.61358,157.17,157.12,6.3645]
[1727683623599,16.372,157.18,157.08,1.27288724]
[1727683623906,16.372,157.18,157.16,6.3627]
[1727683624705,16.372,157.18,157.09,33.96196198]
[1727683624995,16.372,157.18,157.15,6.3633]
[1727683625699,22.7341,157.18,157.14,6.3636]
[1727683625878,24.027864,157.17,157.07,20.0]
[1727683626077,24.027864,157.17,157.06,21.369]
[1727683626078,6.3633,157.15,157.06,21.369]
[1727683626308,6.3633,157.15,157.1,6.365]
[1727683627297,6.3638,157.14,157.09,6.3656]
[1727683628398,6.3638,157.14,157.03,44.027864]
[1727683628598,6.3638,157.14,157.1,6.3652]
[1727683628798,6.3634,157.15,157.1,6.3652]
[1727683631698,26.363,157.16,157.12,6.3645]
[1727683631916,30.390364,157.17,157.07,21.27287564]
[1727683632723,30.390364,157.17,157.07,20.0]
[1727683633235,30.390364,157.17,157.13,6.3641]
[1727683634027,0.12549,157.17,157.13,6.3641]
[1727683634224,22.7342,157.18,157.14,6.3636]
[1727683634449,22.7342,157.18,157.15,6.3632]
[1727683634450,16.372,157.18,157.15,6.3632]
[1727683635007,16.372,157.18,157.08,21.9398]
[1727683635218,6.3625,157.17,157.06,10.18507798]
[1727683635526,6.363,157.16,157.12,6.3645]
[1727683636431,6.3633,157.15,157.11,6.3649]
[1727683636647,6.3633,157.15,157.1,6.3653]
[1727683637426,6.3633,157.15,157.11,6.3649]
[1727683639232,30.390364,157.17,157.12,6.3645]
[1727683639433,0.25098,157.17,157.13,6.364]
[1727683639635,5.0927772,157.16,157.13,6.364]
[1727683639944,5.0927772,157.15,157.13,6.364]
[1727683640121,5.0927772,157.14,157.13,6.364]
[1727683640921,5.0927772,157.14,157.09,1.27282185]
[1727683640922,16.372,157.18,157.09,1.27282185]
[1727683641133,16.372,157.18,157.15,6.3633]
[1727683641326,5.09222335,157.17,157.15,6.3633]
[1727683641528,5.09222335,157.16,157.15,6.3633]
[1727683644247,5.09222335,157.16,157.13,6.3638]
[1727683644447,5.09222335,157.15,157.13,6.3638]
[1727683644641,22.7341,157.18,157.13,6.3638]
[1727683644843,5.08981421,157.14,157.13,6.3638]
[1727683645049,5.08981421,157.14,157.11,6.3648]
[1727683645238,6.3636,157.15,157.1,6.3653]
[1727683645453,5.08981421,157.13,157.1,6.3653]
[1727683645744,5.08981421,157.14,157.1,6.3653]
[1727683645926,5.08981421,157.13,157.04,39.01676634]
[1727683646131,5.08981421,157.12,157.09,6.3657]
[1727683646354,5.08981421,157.11,157.09,6.3657]
[1727683646537,5.08981421,157.1,157.09,6.3657]
[1727683647647,6.3638,157.14,157.1,6.3652]
[1727683648244,5.08757292,157.13,157.1,6.3652]
[1727683648436,5.08757292,157.12,157.1,6.3652]
[1727683648633,5.08757292,157.11,157.1,6.3652]
[1727683650929,22.7342,157.18,157.14,6.3636]
[1727683651133,5.08996716,157.17,157.14,6.3636]
[1727683651341,5.08996716,157.16,157.14,6.3636]
[1727683651550,5.08996716,157.15,157.14,6.3636]
[1727683652352,5.08996716,157.15,157.12,6.3645]
[1727683652531,5.08996716,157.14,157.11,6.3648]
[1727683652734,5.08996716,157.13,157.11,6.3648]
[1727683652933,5.08996716,157.12,157.11,6.3648]
[1727683656753,6.3629,157.16,157.11,6.3648]
[1727683656938,5.0925868,157.12,157.11,6.3648]
[1727683658243,10.18542266,157.12,157.1,6.3653]
[1727683659865,5.09309421,157.11,157.1,6.3653]
[1727683661061,5.09309421,157.11,157.05,20.0]
[1727683661358,5.09309421,157.1,157.06,6.3669]
[1727683661537,5.09309421,157.09,157.06,6.3669]
[1727683661739,5.09309421,157.08,157.02,0.1894821]
[1727683662040,20.96512586,157.12,157.02,0.1894821]
[1727683662041,11.45959421,157.07,157.02,6.5579821]
[1727683662359,5.09309421,157.06,157.02,6.5579821]
[1727683662662,5.09309421,157.05,157.02,6.5579821]
[1727683662842,5.08916315,157.04,157.02,6.5579821]
[1727683663043,0.12549,157.06,157.02,6.5579821]
[1727683663668,5.08920059,157.05,157.02,6.5579821]
[1727683664178,21.95269,157.06,157.02,0.1894821]
[1727683664334,5.08365794,157.05,157.02,0.1894821]
[1727683664658,28.24839,157.06,157.02,0.1894821]
[1727683664964,5.08366169,157.05,157.02,0.1894821]
[1727683665163,28.24839,157.06,157.02,0.1894821]
[1727683665468,0.12549,157.04,157.02,0.1894821]
[1727683665641,6.49339,157.04,157.02,0.1894821]
[1727683666054,0.12549,157.04,157.02,0.1894821]
[1727683669144,24.027864,157.03,157.02,0.1894821]
[1727683669350,30.396064,157.03,157.02,0.1894821]
[1727683669667,24.027864,157.03,157.02,0.1894821]
[1727683674847,6.3674,157.05,157.02,0.1894821]
[1727683676369,0.25098,157.03,157.02,0.1894821]
[1727683676557,50.396064,157.03,157.02,0.1894821]
[1727683686781,0.25098,157.01,156.97,6.3705]
[1727683686963,0.25098,157.0,156.92,22.8611]
[1727683687280,0.25098,156.98,156.88,22.2371]
[1727683687481,6.62118,156.98,156.93,6.3722]
[1727683688475,24.027864,156.96,156.88,22.2371]
[1727683688709,0.25098,156.96,156.88,22.2371]
[1727683689175,0.25098,156.95,156.88,22.2371]
[1727683689974,0.25098,156.95,156.92,6.3726]
[1727683690185,0.25098,156.96,156.92,6.3726]
[1727683691067,0.25098,156.96,156.93,6.3722]
[1727683692790,0.25098,156.96,156.92,6.3726]
[1727683698485,0.12549,156.94,156.92,6.3726]
[1727683705064,0.12549,156.96,156.88,17.07525968]
[1727683705369,26.3706,156.97,156.88,15.8006]
[1727683705578,26.3706,156.97,156.92,6.3726]
[1727683705897,6.3713,156.96,156.88,15.8006]
[1727683706880,0.25098,156.95,156.88,15.8006]
[1727683707478,0.12549,156.94,156.87,0.8141811]
[1727683708795,6.3714,156.95,156.87,0.8141811]
[1727683708796,23.902374,156.95,156.87,0.8141811]
[1727683709583,23.902374,156.95,156.92,6.3726]
[1727683712705,0.12549,156.95,156.87,2.08883737]
[1727683712903,0.12549,156.95,156.92,6.3725]
[1727683714706,20.0,156.97,156.94,6.3715]
[1727683714907,20.0,156.98,156.94,6.3715]
[1727683715215,20.0,156.97,156.94,6.3715]
[1727683715997,0.25098,156.96,156.93,6.3721]
[1727683716807,24.027864,156.96,156.93,6.3721]
[1727683719844,0.25098,156.96,156.93,6.3721]
[1727683729217,5.0828817,156.95,156.93,6.3721]
[1727683729419,0.25098,156.96,156.93,6.3721]
[1727683729715,5.0828817,156.95,156.93,6.3721]
[1727683729913,0.25098,156.96,156.93,6.3721]
[1727683730093,5.0828817,156.95,156.93,6.3721]
[1727683730294,0.25098,156.96,156.93,6.3721]
[1727683730511,5.08424489,156.95,156.93,6.3721]
[1727683730816,0.25098,156.96,156.93,6.3721]
[1727683731113,5.08410306,156.95,156.93,6.3721]
[1727683731419,0.25098,156.96,156.93,6.3721]
[1727683731742,5.0856982,156.95,156.93,6.3721]
[1727683731925,0.25098,156.96,156.93,6.3721]
[1727683732227,5.08552275,156.95,156.93,6.3721]
[1727683732397,0.25098,156.96,156.93,6.3721]
[1727683732599,5.0874579,156.95,156.93,6.3721]
[1727683732809,43.776884,156.97,156.93,6.3721]
[1727683733009,5.0874607,156.96,156.93,6.3721]
[1727683733211,5.0874607,156.95,156.93,6.3721]
[1727683733414,5.0874607,156.94,156.93,6.3721]
[1727683733802,20.0,156.98,156.9,15.4265]
[1727683734114,5.08967992,156.97,156.94,6.3717]
[1727683734322,5.08967992,156.96,156.94,6.3717]
[1727683734493,5.08967992,156.95,156.94,6.3717]
[1727683737125,5.08967992,156.95,156.9,15.4265]
[1727683737327,24.027864,156.97,156.9,15.4265]
[1727683737508,5.08963944,156.96,156.9,15.4265]
[1727683737703,5.08963944,156.95,156.92,6.3725]
[1727683738725,5.08963944,156.95,156.91,6.3727]
[1727683738922,5.08963944,156.94,156.92,6.3723]
[1727683739130,30.398564,156.97,156.92,6.3723]
[1727683739423,5.09064088,156.96,156.92,6.3723]
[1727683739623,5.09064088,156.95,156.92,6.3723]
[1727683739833,5.09064088,156.94,156.92,6.3723]
[1727683740008,30.398564,156.97,156.92,6.3723]
[1727683740209,5.09224656,156.96,156.93,6.3722]
[1727683740449,5.09224656,156.95,156.93,6.3722]
[1727683740620,30.398564,156.97,156.93,6.3722]
[1727683740829,5.09251625,156.95,156.93,6.3722]
[1727683741010,30.398564,156.97,156.93,6.3722]
[1727683741222,5.09255776,156.96,156.93,6.3722]
[1727683741729,5.09255776,156.95,156.93,6.3722]
[1727683741922,5.09255776,156.94,156.93,6.3722]
[1727683746125,5.09255776,156.94,156.92,6.3726]
[1727683746328,30.398664,156.97,156.93,6.3722]
[1727683746642,5.09291186,156.96,156.93,6.3722]
[1727683746843,5.09291186,156.95,156.93,6.3722]
[1727683747033,5.09291186,156.94,156.93,6.3722]
[1727683747827,5.09291186,156.94,156.89,6.6142]
[1727683748037,0.25098,156.97,156.92,6.3726]
[1727683748245,5.0929965,156.96,156.92,6.3726]
[1727683748441,5.0929965,156.95,156.92,6.3726]
[1727683748643,5.0929965,156.94,156.92,6.3726]
[1727683748826,5.0929965,156.93,156.92,6.3726]
[1727683753336,0.12549,156.95,156.92,6.3726]
[1727683753641,5.09792995,156.93,156.92,6.3726]
[1727683754822,0.12549,156.95,156.92,6.3726]
[1727683755130,5.0978242,156.94,156.92,6.3726]
[1727683755338,5.0978242,156.93,156.92,6.3726]
[1727683756425,5.09760059,156.93,156.92,6.3726]
[1727683758935,23.42643619,157.0,156.96,6.3709]
[1727683759125,5.09816002,156.99,156.96,6.3709]
[1727683759326,23.14753619,157.0,156.96,6.3709]
[1727683759635,5.09808661,156.98,156.97,6.3706]
[1727683760047,5.09808661,156.99,156.98,6.3702]
[1727683760244,22.0112,157.04,156.99,6.3697]
[1727683760245,21.9571,157.04,156.99,6.3697]
[1727683760830,15.5893,157.04,156.94,1.27406217]
[1727683761147,6.3689,157.02,156.94,1.27406217]
[1727683761343,5.09646525,157.01,156.97,6.3705]
[1727683761645,11.46586525,157.0,156.92,16.1942]
[1727683761818,5.09646525,156.99,156.95,6.3713]
[1727683762021,5.09646525,156.98,156.95,6.3713]
[1727683762240,5.09646525,156.97,156.95,6.3713]
[1727683762429,6.3694,157.0,156.95,6.3713]
[1727683762749,5.09187076,156.99,156.95,6.3713]
[1727683762952,5.09187076,156.98,156.95,6.3713]
[1727683763125,6.3694,157.0,156.95,6.3713]
[1727683763448,5.09119413,156.99,156.95,6.3713]
[1727683763649,5.09119413,156.98,156.95,6.3713]
[1727683763943,6.3694,157.0,156.95,6.3713]
[1727683764121,5.09113668,156.99,156.95,6.3713]
[1727683764323,5.09113668,156.98,156.95,6.3713]
[1727683764523,6.3694,157.0,156.95,6.3713]
[1727683764743,5.0905467,156.99,156.95,6.3713]
[1727683764940,5.0905467,156.98,156.95,6.3713]
[1727683765138,6.3694,157.0,156.95,6.3713]
[1727683765429,5.0891705,156.99,156.95,6.3713]
[1727683765729,6.49609,156.97,156.93,6.3721]
[1727683765924,0.12549,156.96,156.92,6.3726]
[1727683766121,5.21390462,156.96,156.92,6.3726]
[1727683766528,0.12549,156.96,156.92,6.3726]
[1727683766950,5.08643619,156.95,156.92,6.3726]
[1727683767130,0.12549,156.96,156.92,6.3726]
[1727683767332,5.08619896,156.95,156.92,6.3726]
[1727683767538,0.12549,156.96,156.92,6.3726]
[1727683767738,5.08621025,156.95,156.92,6.3726]
[1727683767961,0.12549,156.96,156.92,6.3726]
[1727683768246,5.08620953,156.95,156.92,6.3726]
[1727683768444,5.08620953,156.95,156.9,6.3455]
[1727683768445,6.49719,156.95,156.9,6.3734]
[1727683768651,5.08554979,156.94,156.9,6.3734]
[1727683768949,0.12549,156.95,156.9,6.3734]
[1727683768950,6.49699,156.95,156.9,6.3734]
[1727683769123,5.08598105,156.94,156.91,6.373]
[1727683769325,15.0225,156.98,156.88,16.4718]
[1727683769526,31.45694381,156.97,156.92,6.3726]
[1727683769743,5.21153381,156.96,156.92,6.3726]
[1727683769945,0.12549,156.96,156.92,6.3726]
[1727683770148,5.21177739,156.96,156.92,6.3726]
[1727683770354,5.08628739,156.95,156.92,6.3726]
[1727683770541,0.12549,156.96,156.92,6.3726]
[1727683770853,5.08675916,156.95,156.91,6.3729]
[1727683771057,5.08675916,156.94,156.91,6.3729]
[1727683771349,30.273674,156.96,156.91,6.3729]
[1727683771645,5.0863782,156.95,156.91,6.3729]
[1727683771840,30.273674,156.96,156.91,6.3729]
[1727683772028,5.08638954,156.95,156.91,6.3729]
[1727683772224,30.273674,156.96,156.91,6.3729]
[1727683772447,5.08635697,156.95,156.91,6.3729]
[1727683772655,30.273674,156.96,156.91,6.3729]
[1727683773047,5.08635697,156.95,156.91,6.3729]
[1727683773546,30.273674,156.96,156.91,6.3729]
[1727683774849,0.12549,156.96,156.89,1.27459741]
[1727683775046,0.12549,156.96,156.93,6.3722]
[1727683776358,0.12549,156.96,156.88,16.4718]
[1727683776860,15.14799,156.98,156.88,26.69514573]
[1727683777030,22.5219,157.02,156.92,6.4308]
[1727683777338,6.369,157.01,156.96,6.3709]
[1727683778354,24.027864,157.0,156.96,6.3709]
[1727683780656,24.027864,157.0,156.95,6.3714]
[1727683780853,6.62048,157.0,156.95,6.3714]
[1727683784359,23.776884,156.99,156.94,6.3717]
[1727683784563,0.25098,156.98,156.94,6.3717]
[1727683784866,6.62148,156.98,156.89,20.0]
[1727683786647,6.62148,156.98,156.88,22.9162]
[1727683786965,6.62148,156.98,156.89,20.0]
[1727683787461,6.3706,156.97,156.88,22.9162]
[1727683787669,6.3706,156.97,156.93,6.3719]
[1727683787879,0.12549,156.95,156.91,6.3727]
[1727683789153,0.12549,156.95,156.92,6.3725]
[1727683789965,16.0659,156.97,156.93,6.372]
[1727683790270,22.4365,156.97,156.93,6.372]
[1727683793967,24.027864,156.96,156.93,6.372]
[1727683794165,24.027864,156.96,156.88,16.4718]
[1727683794345,6.3714,156.95,156.91,6.3729]
[1727683795051,24.027864,156.96,156.91,6.3729]
[1727683795052,30.398964,156.96,156.91,6.3729]
[1727683797571,6.3715,156.95,156.91,6.3729]
[1727683799359,30.398964,156.96,156.92,6.3725]
[1727683799668,24.027864,156.96,156.92,6.3725]
[1727683800371,21.472,157.01,156.9,10.22334573]
[1727683800550,21.472,157.01,156.96,6.3706]
[1727683800551,22.58101656,157.01,156.96,6.3706]
[1727683800750,22.58101656,157.01,156.94,6.3717]
[1727683801859,44.027864,157.0,156.94,6.3717]
[1727683802067,6.3702,156.98,156.94,6.3717]
[1727683802563,0.12549,156.98,156.94,6.3717]
[1727683802898,0.12549,156.98,156.87,0.8141811]
[1727683802899,0.12549,156.95,156.9,6.3731]
[1727683803170,0.12549,156.95,156.89,6.3738]
[1727683803171,26.3721,156.94,156.89,6.3738]
[1727683803472,30.400164,156.93,156.88,6.3742]
[1727683803645,6.3727,156.92,156.87,7.1887811]
[1727683803852,0.12549,156.91,156.87,7.1887811]
[1727683805469,20.12549,156.91,156.87,7.1887811]
[1727683805649,0.12549,156.91,156.87,7.1887811]
[1727683806065,20.12549,156.91,156.87,7.1887811]
[1727683806263,35.43499,156.91,156.87,0.8141811]
[1727683806461,41.80809,156.91,156.87,0.8141811]
[1727683806782,0.12549,156.9,156.87,0.8141811]
[1727683806948,30.275874,156.9,156.87,0.8141811]
[1727683807152,0.12549,156.89,156.87,0.8141811]
[1727683808488,23.902374,156.88,156.87,0.8141811]
[1727683808669,24.027864,156.88,156.87,0.8141811]
[1727683808875,30.402064,156.88,156.87,0.8141811]
[1727683809373,30.402964,156.86,156.85,0.6712678]
[1727683810157,24.027864,156.86,156.85,0.6712678]
[1727683810589,6.3822,156.9,156.85,0.6712678]
[1727683810758,0.25098,156.88,156.85,0.6712678]
[1727683810951,0.25098,156.88,156.85,7.0466678]
[1727683811160,20.0,156.89,156.85,7.0466678]
[1727683812767,0.12549,156.88,156.85,7.0466678]
[1727683813855,0.12549,156.9,156.86,6.375]
[1727683814061,0.12549,156.89,156.87,6.3746]
[1727683814471,0.12549,156.89,156.86,6.375]
[1727683815393,0.25098,156.89,156.85,7.0466678]
[1727683816970,6.62508,156.89,156.85,0.6712678]
[1727683817872,6.62508,156.89,156.85,7.0467678]
[1727683818591,0.25098,156.89,156.85,7.0467678]
[1727683818881,6.0939,156.93,156.85,7.0467678]
[1727683818882,6.3728,156.92,156.85,0.6712678]
[1727683820180,0.12549,156.91,156.85,0.6712678]
[1727683820765,0.25098,156.91,156.85,0.6712678]
[1727683821075,24.027864,156.91,156.85,0.6712678]
[1727683823486,20.12549,156.92,156.85,0.6712678]
[1727683823691,20.12549,156.92,156.89,6.3737]
[1727683824393,0.12549,156.92,156.89,6.3737]
[1727683824688,15.1785,156.95,156.91,6.3726]
[1727683824866,21.55,156.95,156.9,6.3734]
[1727683825904,24.027864,156.94,156.9,6.3734]
[1727683827799,30.399864,156.94,156.9,6.3734]
[1727683830880,30.399864,156.94,156.85,20.6712678]
[1727683831086,6.3722,156.93,156.85,20.6712678]
[1727683831794,30.399764,156.94,156.89,6.3737]
[1727683832982,24.027864,156.94,156.86,10.22334573]
[1727683833181,24.027864,156.94,156.9,6.3731]
[1727683833389,30.399764,156.94,156.9,6.3731]
[1727683833793,5.06034126,156.93,156.9,6.3731]
[1727683833997,30.399764,156.94,156.9,6.3731]
[1727683834295,5.06063705,156.93,156.86,10.22334573]
[1727683834480,6.3723,156.93,156.89,6.3737]
[1727683834903,6.3727,156.92,156.88,6.3741]
[1727683835076,6.3723,156.93,156.88,6.3741]
[1727683835408,5.06162831,156.92,156.88,6.3741]
[1727683835607,6.3723,156.93,156.88,6.3741]
[1727683835773,5.06205815,156.92,156.88,6.3741]
[1727683835982,6.3723,156.93,156.88,6.3741]
[1727683836278,5.06200095,156.92,156.88,6.3741]
[1727683836478,6.3723,156.93,156.88,6.3741]
[1727683836679,5.06291595,156.92,156.89,6.3738]
[1727683836880,6.3723,156.93,156.89,6.3738]
[1727683837079,5.06300166,156.92,156.89,6.3738]
[1727683837300,6.3723,156.93,156.89,6.3738]
[1727683837501,5.06441294,156.92,156.89,6.3738]
[1727683837702,6.3723,156.93,156.89,6.3738]
[1727683837997,5.06442864,156.92,156.89,6.3738]
[1727683838208,6.3723,156.93,156.89,6.3738]
[1727683838499,5.06601062,156.92,156.89,6.3738]
[1727683838800,6.3723,156.93,156.89,6.3738]
[1727683838990,5.06601062,156.92,156.89,6.3738]
[1727683839196,5.06739743,156.91,156.89,6.3738]
[1727683839398,6.3723,156.93,156.89,6.3738]
[1727683839594,5.06750923,156.92,156.89,6.3738]
[1727683840001,5.06750923,156.91,156.87,6.3743]
[1727683843392,5.06750923,156.9,156.87,6.3743]
[1727683843988,5.06750923,156.89,156.87,6.3743]
[1727683844198,6.373,156.91,156.87,6.3743]
[1727683844493,5.07508101,156.9,156.87,6.3743]
[1727683844702,5.07508101,156.89,156.87,6.3743]
[1727683845008,6.373,156.91,156.87,6.3743]
[1727683845204,5.07512414,156.9,156.87,6.3743]
[1727683845409,5.07512414,156.89,156.87,6.3743]
[1727683845607,6.373,156.91,156.87,6.3743]
[1727683845792,5.07622951,156.9,156.87,6.3743]
[1727683845991,5.07622951,156.89,156.87,6.3743]
[1727683846198,6.3735,156.9,156.86,6.375]
[1727683846403,5.07653764,156.89,156.86,6.375]
[1727683846589,5.07653764,156.88,156.85,7.0466678]
[1727683846794,6.3735,156.9,156.85,7.0466678]
[1727683846994,5.07637274,156.89,156.85,7.0466678]
[1727683847196,5.07637274,156.88,156.85,7.0466678]
[1727683847395,6.3735,156.9,156.85,7.0466678]
[1727683847596,5.07910845,156.89,156.85,7.0466678]
[1727683847793,5.07910845,156.88,156.85,7.0466678]
[1727683847998,6.3735,156.9,156.85,7.0466678]
[1727683848293,5.07882181,156.89,156.85,7.0466678]
[1727683848498,5.07882181,156.88,156.85,7.0466678]
[1727683848697,5.07882181,156.87,156.85,7.0466678]
[1727683848912,6.3735,156.9,156.85,7.0466678]
[1727683849995,5.08234528,156.89,156.85,0.6712678]
[1727683850198,6.3747,156.87,156.85,0.6712678]
[1727683855492,6.62608,156.86,156.85,0.6712678]
[1727683855697,26.3751,156.86,156.85,0.6712678]
[1727683856019,26.50059,156.86,156.85,0.6712678]
[1727683861999,50.402964,156.86,156.85,0.6712678]